bitfinex/quotes_ETHUSD_20250414
["timestamp","ask_amount","ask_price","bid_price","bid_amount"]
[1744594305151,12.66165,1618.8,1618.3,4.94331]
[1744594305351,0.7947,1619.0,1618.4,3.06178246]
[1744594305554,0.7947,1619.0,1618.6,4.94252]
[1744594305851,6.309595,1619.0,1618.6,7.9425]
[1744594306052,6.925,1619.2,1618.9,4.94162]
[1744594306357,0.7947,1619.6,1619.2,4.94054]
[1744594306547,12.65759,1619.8,1619.3,4.94029]
[1744594306726,17.5967,1619.8,1619.4,4.94009]
[1744594307451,4.93949,1619.6,1619.2,4.94065]
[1744594307658,0.493949,1619.5,1619.2,4.94065]
[1744594307855,0.493949,1619.5,1619.0,7.94131]
[1744594308062,4.9392,1619.7,1619.3,4.94011]
[1744594308260,4.9392,1619.7,1619.3,9.88031]
[1744594308556,6.62623481,1620.2,1619.3,9.88031]
[1744594308557,58.69869,1620.0,1619.6,4.93934]
[1744594308853,58.69869,1620.0,1619.5,9.87944]
[1744594309360,4.93876,1619.9,1619.5,4.93966]
[1744594309553,0.493876,1619.8,1619.5,4.93966]
[1744594309857,5.432896,1619.8,1619.4,5.39676823]
[1744594310056,0.493876,1619.8,1619.5,4.93965]
[1744594310266,58.69879,1620.0,1619.5,5.00138781]
[1744594310554,58.69879,1620.0,1619.5,4.93965]
[1744594310758,58.69879,1620.0,1619.5,5.00138781]
[1744594311064,4.93888,1619.8,1619.4,4.94008]
[1744594311224,4.93871,1619.9,1619.4,4.93994]
[1744594311426,0.493871,1619.8,1619.5,4.93977]
[1744594311623,53.7604,1620.0,1619.6,4.93931]
[1744594311866,58.69871,1620.0,1619.6,4.93931]
[1744594312362,53.7604,1620.0,1619.5,4.93962]
[1744594312562,10.31472,1619.9,1619.5,4.93962]
[1744594312950,5.37604,1619.9,1619.4,4.93991]
[1744594313263,9.87827,1619.8,1619.4,4.93991]
[1744594313461,4.93913,1619.8,1619.4,4.93991]
[1744594313667,4.93913,1619.8,1619.4,9.94154464]
[1744594313862,6.464506,1619.8,1619.4,9.94154464]
[1744594314059,4.93922,1619.7,1619.3,5.62399]
[1744594314261,0.7709,1619.6,1619.2,4.94063]
[1744594314631,0.7709,1619.6,1619.2,9.88116]
[1744594314858,1.835854,1619.6,1619.2,9.88116]
[1744594315060,1.835854,1619.6,1619.3,9.8806]
[1744594315364,2.296276,1619.8,1619.3,4.94039]
[1744594315564,4.93921,1619.7,1619.3,4.94039]
[1744594315866,5.71006,1619.8,1619.3,4.94022]
[1744594316044,5.71006,1619.8,1619.4,4.93997]
[1744594316247,4.9394,1619.7,1619.3,4.94022]
[1744594316564,4.93951,1619.6,1619.2,4.94068]
[1744594316769,6.619401,1619.6,1619.2,4.94068]
[1744594317164,5.71082,1619.5,1619.1,4.94098]
[1744594317366,5.71082,1619.5,1619.1,9.88182]
[1744594317667,0.7709,1619.5,1619.2,4.94058]
[1744594318071,0.7709,1619.5,1619.1,4.94084]
[1744594318072,0.7709,1619.5,1619.1,0.06175678]
[1744594318369,0.7709,1619.5,1619.2,4.94056]
[1744594319058,0.7709,1619.5,1619.2,9.88109]
[1744594319403,7.6909,1619.7,1619.3,4.94026]
[1744594319535,7.6909,1619.7,1619.4,4.9401]
[1744594320044,7.6909,1619.7,1619.4,4.93995]
[1744594320370,0.7709,1619.7,1619.5,4.93977]
[1744594320744,0.7709,1619.7,1619.4,4.93995]
[1744594320951,2.033882,1619.7,1619.2,0.6836]
[1744594321280,2.033882,1619.7,1619.5,4.93973]
[1744594321484,6.92,1619.8,1619.2,5.62429]
[1744594321647,0.7709,1619.9,1619.7,4.93891]
[1744594321971,0.02,1620.4,1620.1,4.93796]
[1744594322173,0.79099,1620.4,1620.3,4.93735]
[1744594322374,0.02,1620.4,1620.3,4.93735]
[1744594322738,0.02,1620.4,1620.2,4.93755]
[1744594322945,0.7709,1620.3,1620.0,4.93823]
[1744594323144,1.343709,1620.3,1620.1,4.93794]
[1744594323344,0.02,1620.4,1620.1,9.87575]
[1744594323544,0.02,1620.4,1619.9,3.0]
[1744594323545,0.02,1620.4,1620.2,4.93759]
[1744594323774,0.02,1620.4,1620.3,4.93735]
[1744594324682,0.02,1620.4,1620.2,4.93765]
[1744594324882,0.02,1620.4,1620.3,4.93735]
[1744594327768,0.02,1620.4,1620.3,5.98655699]
[1744594328099,0.02,1620.4,1620.3,8.98655603]
[1744594328501,0.02,1620.4,1620.3,8.92485]
[1744594329072,0.02,1620.4,1620.3,8.98655606]
[1744594329491,0.02,1620.4,1620.3,10.22015606]
[1744594330011,0.02,1620.4,1620.3,9.60845]
[1744594330373,0.02,1620.4,1620.3,9.67015228]
[1744594330801,0.02,1620.4,1620.3,5.92485]
[1744594330991,0.02,1620.4,1620.3,4.93735]
[1744594331507,0.02,1620.4,1620.2,4.93765]
[1744594331679,0.02,1620.4,1620.1,4.93794]
[1744594332007,0.8137,1620.3,1619.9,4.93842]
[1744594332305,7.7237,1620.3,1620.1,4.93785]
[1744594332510,7.7237,1620.3,1620.2,4.93766]
[1744594332808,7.7237,1620.3,1620.1,4.93785]
[1744594333204,7.7237,1620.3,1620.2,4.93766]
[1744594333384,7.7237,1620.3,1620.1,4.93785]
[1744594334174,7.7237,1620.3,1620.2,4.93766]
[1744594334576,7.7237,1620.3,1620.0,4.93825]
[1744594334787,7.7237,1620.3,1620.0,9.87635]
[1744594335311,8.991775,1620.3,1620.0,4.9381]
[1744594335677,8.991775,1620.3,1620.1,4.93794]
[1744594336209,8.991775,1620.3,1620.0,9.87626]
[1744594336405,8.991775,1620.3,1620.0,4.9381]
[1744594337082,13.929235,1620.3,1619.9,4.93854]
[1744594337279,1.3929235,1620.2,1619.8,4.93884]
[1744594337480,5.75223,1620.0,1619.3,11.78376]
[1744594337796,5.75223,1620.0,1619.6,4.93936]
[1744594337797,5.75209,1620.0,1619.6,4.93936]
[1744594338125,0.8137,1620.0,1619.8,4.93876]
[1744594338342,0.8137,1620.2,1620.1,4.93773]
[1744594339837,6.52389,1620.2,1619.8,4.93884]
[1744594340038,6.52389,1620.2,1619.8,9.87759]
[1744594340338,0.8137,1620.2,1619.9,4.93837]
[1744594340501,5.75137,1620.2,1619.9,4.93837]
[1744594340983,0.8137,1620.2,1619.9,4.93837]
[1744594341189,0.8137,1620.2,1619.9,9.87678]
[1744594341428,0.8137,1620.2,1619.8,4.93887]
[1744594341728,5.75152,1620.2,1619.8,4.93887]
[1744594341944,0.8137,1620.2,1619.9,4.93839]
[1744594342099,0.8137,1620.2,1619.8,4.93878]
[1744594342304,0.8137,1620.2,1619.5,5.62337]
[1744594342496,11.8474,1620.3,1619.4,6.16]
[1744594342497,0.7584,1619.8,1619.7,4.93918]
[1744594342704,0.7584,1620.1,1619.8,4.93867]
[1744594342919,1.328008,1620.1,1619.8,9.87745]
[1744594343436,0.02,1620.4,1620.1,4.93776]
[1744594343591,0.02,1620.4,1620.2,4.93754]
[1744594343790,0.02,1620.4,1620.2,9.87503]
[1744594344091,0.02,1620.4,1620.3,4.93735]
[1744594344320,0.02,1620.4,1620.2,4.93749]
[1744594345215,0.02,1620.4,1620.3,4.93735]
[1744594345742,0.02,1620.4,1620.2,4.93749]
[1744594346319,0.02,1620.4,1620.3,4.93735]
[1744594347694,0.02,1620.4,1620.1,4.93792]
[1744594347995,0.7584,1620.3,1620.0,4.93824]
[1744594348240,13.177335,1620.3,1620.0,4.93824]
[1744594348449,18.114895,1620.3,1619.9,4.93857]
[1744594348615,18.114955,1620.3,1619.9,4.93857]
[1744594348816,18.114955,1620.3,1619.6,4.93945]
[1744594348817,4.93828,1620.0,1619.6,4.93945]
[1744594349012,5.69739,1619.8,1619.4,4.94005]
[1744594349213,10.63652,1619.8,1619.4,4.94005]
[1744594349412,4.93922,1619.7,1619.3,4.94039]
[1744594349612,5.69822,1619.5,1619.2,10.26851008]
[1744594349813,0.7584,1619.5,1619.2,10.26851008]
[1744594350009,7.6684,1619.5,1619.2,5.32783008]
[1744594350322,7.6684,1619.5,1619.3,4.94022]
[1744594350524,11.10808,1620.1,1619.7,4.93907]
[1744594350835,0.7584,1620.0,1619.6,4.93947]
[1744594351044,0.7584,1620.0,1619.6,4.93934]
[1744594351228,0.7584,1620.0,1619.9,4.93857]
[1744594351412,7.6684,1620.2,1620.0,4.93824]
[1744594351612,6.91,1620.2,1620.1,4.93796]
[1744594353371,1e-05,1620.8,1620.7,4.93613]
[1744594353551,0.394863,1621.6,1621.3,4.93431]
[1744594353859,0.394863,1621.6,1621.3,4.99598568]
[1744594354059,0.394863,1621.6,1621.3,4.93431]
[1744594355358,0.394863,1621.6,1621.0,7.9352]
[1744594355514,0.394863,1621.6,1621.1,4.93488]
[1744594355515,0.7966,1621.4,1621.1,4.93488]
[1744594355858,0.7966,1621.4,1621.1,4.93472]
[1744594356064,0.7966,1621.4,1621.0,4.9352]
[1744594356355,6.303643,1621.4,1621.0,4.9352]
[1744594356557,1.369643,1621.4,1621.0,4.9352]
[1744594356720,4.93453,1621.3,1620.9,4.93523]
[1744594357063,3.0,1621.2,1620.7,5.32783008]
[1744594357265,4.93583,1620.8,1620.7,5.32783008]
[1744594357428,15.831968,1620.8,1620.7,5.32783008]
[1744594358137,7.93632,1620.7,1620.2,4.93764]
[1744594358341,3.0,1620.7,1620.3,4.93717]
[1744594358717,3.8266,1620.7,1620.3,4.93717]
[1744594358920,0.8266,1620.7,1620.4,4.93683]
[1744594359157,0.8266,1621.0,1620.5,0.493683]
[1744594359313,0.8266,1621.0,1620.8,4.93571]
[1744594359519,0.8266,1621.0,1620.7,9.87206]
[1744594359916,0.8266,1621.0,1620.8,4.93582]
[1744594360659,1.58483483,1621.0,1620.6,4.9364]
[1744594360830,1.58483483,1621.0,1620.5,4.93644]
[1744594360831,6.52007483,1621.0,1620.5,4.93644]
[1744594361029,4.93556,1620.9,1620.4,4.93702]
[1744594361255,4.93556,1620.9,1620.4,9.87385]
[1744594361434,6.52018483,1621.0,1620.5,4.93667]
[1744594361638,0.65201848,1620.9,1620.6,4.93624]
[1744594361864,0.65201848,1620.9,1620.5,4.93667]
[1744594362070,0.65201848,1620.9,1620.5,4.93656]
[1744594362367,0.65201848,1620.9,1620.6,4.93639]
[1744594362520,0.65201848,1620.9,1620.5,4.93656]
[1744594362721,4.93585,1620.8,1620.4,4.93699]
[1744594362956,6.903,1620.7,1620.5,4.93662]
[1744594363643,6.903,1620.7,1620.4,4.93683]
[1744594364356,6.903,1620.7,1620.4,9.87369]
[1744594364672,4.93594,1620.8,1620.4,9.87369]
[1744594364861,8.69356483,1621.0,1620.5,4.93649]
[1744594365059,3.75823483,1621.0,1620.6,4.93624]
[1744594365259,0.75823483,1621.0,1620.4,4.99874636]
[1744594365469,4.93445,1621.3,1620.4,4.99874636]
[1744594365470,7.297863,1621.6,1621.2,4.93441]
[1744594365669,7.297863,1621.6,1620.5,0.7136]
[1744594365670,0.8266,1621.5,1620.5,0.7136]
[1744594365848,5.76132,1621.2,1620.8,4.93561]
[1744594366048,6.903,1621.1,1620.8,4.93561]
[1744594366277,4.93554,1620.9,1620.5,5.65032]
[1744594366441,1.320154,1620.8,1620.5,4.93672]
[1744594366636,0.8266,1620.8,1620.6,4.93643]
[1744594366868,0.8266,1620.8,1620.6,9.87272]
[1744594367037,6.903,1621.1,1620.5,5.48674]
[1744594367244,6.903,1621.1,1621.0,4.93522]
[1744594368271,6.903,1621.1,1620.9,4.93523]
[1744594369336,6.903,1621.1,1620.9,9.87055]
[1744594369883,6.903,1621.1,1620.6,4.9364]
[1744594369884,7.5933,1621.1,1620.6,4.9364]
[1744594370042,0.803,1621.0,1620.5,4.93671]
[1744594370248,4.93572,1620.9,1620.4,4.93701]
[1744594370481,0.493572,1620.8,1620.4,4.93701]
[1744594370666,6.903,1620.7,1620.4,9.87391]
[1744594370865,6.903,1620.7,1620.5,4.93671]
[1744594372194,6.903,1620.7,1620.4,4.9369]
[1744594372564,6.903,1620.7,1620.4,4.93689]
[1744594372765,8.1362402,1620.7,1620.4,4.93689]
[1744594372968,8.1362402,1620.7,1620.2,4.93761]
[1744594372969,5.73956,1620.6,1620.2,4.93761]
[1744594373301,5.73957,1620.6,1620.1,4.93792]
[1744594373478,4.93709,1620.4,1620.0,9.87638]
[1744594373664,6.903,1620.3,1620.1,4.93793]
[1744594374288,6.903,1620.3,1620.2,4.93766]
[1744594376366,6.903,1620.3,1620.1,4.93793]
[1744594376568,6.903,1620.3,1620.1,9.87571]
[1744594376994,6.903,1620.3,1620.2,4.93766]
[1744594378161,6.903,1620.3,1620.1,4.93778]
[1744594378688,0.803,1620.2,1619.9,4.93853]
[1744594378891,0.803,1620.2,1619.7,5.65271]
[1744594379081,4.93826,1620.1,1619.7,9.87812]
[1744594380273,4.93826,1620.1,1619.8,4.93884]
[1744594380474,4.93826,1620.1,1619.7,9.87804]
[1744594380670,4.93826,1620.1,1619.2,10.81837008]
[1744594380671,4.93852,1620.0,1619.3,0.7136]
[1744594380971,0.7706,1620.2,1619.4,4.93999]
[1744594380972,0.803,1619.7,1619.4,4.93999]
[1744594381168,0.803,1619.7,1619.3,5.65397]
[1744594381169,0.803,1619.7,1619.3,4.94037]
[1744594381377,5.74221,1619.7,1619.2,15.20910008]
[1744594381611,5.74221,1619.7,1619.3,4.94037]
[1744594381824,4.93981,1619.5,1619.1,4.96093]
[1744594382142,4.94029,1619.4,1619.1,0.02]
[1744594382311,5.74342,1619.3,1619.1,0.02]
[1744594382479,4.94071,1619.2,1619.1,0.02]
[1744594382677,6.009123,1619.2,1619.1,0.02]
[1744594383416,10.362123,1619.2,1619.1,0.02]
[1744594384406,10.362123,1619.2,1618.2,4.94373]
[1744594384407,4.94241,1618.7,1618.2,4.94373]
[1744594384630,4.94285,1618.5,1618.1,4.96406]
[1744594384906,5.74585,1618.5,1618.1,4.96406]
[1744594385613,0.803,1618.5,1618.2,4.94364]
[1744594385766,5.74592,1618.5,1618.1,4.96393]
[1744594386510,5.74585,1618.5,1618.1,4.96393]
[1744594386664,7.505392,1618.5,1618.1,4.96393]
[1744594387184,2.562542,1618.5,1618.1,4.96393]
[1744594387526,7.505422,1618.5,1618.1,4.96393]
[1744594387724,0.803,1618.5,1618.3,4.94331]
[1744594387931,0.803,1618.5,1618.2,4.94376]
[1744594388078,0.803,1618.5,1618.3,4.9434]
[1744594389094,0.803,1618.5,1618.2,4.94355]
[1744594389295,0.803,1618.5,1618.3,4.94343]
[1744594389494,0.803,1618.5,1618.4,4.94315]
[1744594389734,6.907,1618.6,1618.4,4.94302]
[1744594390265,6.907,1618.6,1618.4,9.88605]
[1744594390638,6.907,1618.6,1618.4,4.94302]
[1744594390962,6.907,1618.6,1618.4,9.88606]
[1744594391130,6.907,1618.6,1618.5,4.94284]
[1744594392118,6.907,1618.6,1618.4,4.94302]
[1744594392633,6.907,1618.6,1618.4,4.94295]
[1744594392841,3.0,1619.1,1618.5,4.94268]
[1744594393156,4.94206,1618.8,1618.4,4.94303]
[1744594393340,4.94206,1618.8,1618.4,9.88598]
[1744594393729,4.94206,1618.8,1618.4,4.94295]
[1744594394462,5.74555,1618.6,1618.2,9.88723]
[1744594394662,6.909,1618.5,1618.2,9.88723]
[1744594394962,6.909,1618.5,1618.4,4.94315]
[1744594395560,7.712,1618.8,1618.5,4.9426]
[1744594396130,6.909,1618.8,1618.7,4.94223]
[1744594396561,6.909,1618.8,1618.7,5.65583]
[1744594396767,6.909,1618.8,1618.5,4.94283]
[1744594396768,6.909,1618.8,1618.5,4.94282]
[1744594396934,8.094078,1618.8,1618.5,4.94282]
[1744594397134,8.094078,1618.8,1618.5,9.88549]
[1744594397349,8.094078,1618.8,1618.6,4.94252]
[1744594398163,8.094078,1618.8,1618.5,4.94284]
[1744594398371,13.036098,1618.8,1618.4,9.8861]
[1744594398868,13.036098,1618.8,1618.5,4.94283]
[1744594399031,1.3036098,1618.7,1618.5,4.94283]
[1744594400270,1.3036098,1618.7,1618.4,4.94299]
[1744594400766,0.833,1618.6,1618.3,4.94342]
[1744594401134,5.77565,1618.6,1618.2,4.94359]
[1744594401332,6.97781098,1618.6,1618.2,4.94359]
[1744594401533,4.94348,1618.3,1618.1,0.02]
[1744594401845,7.743,1618.2,1618.1,0.02]
[1744594402045,12.68676,1618.2,1618.1,0.02]
[1744594402459,7.743,1618.2,1618.1,0.02]
[1744594402775,13.955426,1618.2,1618.1,0.02]
[1744594403870,9.011666,1618.2,1618.1,0.02]
[1744594404077,6.911,1618.2,1618.1,4.96407]
[1744594404276,59.898,1618.5,1618.3,4.94345]
[1744594404476,59.898,1618.5,1618.3,4.94327]
[1744594404979,59.898,1618.5,1618.4,4.94315]
[1744594406279,4.94196,1618.8,1618.3,4.94327]
[1744594406280,6.911,1618.8,1618.6,4.94236]
[1744594406473,6.911,1618.8,1618.3,5.65687]
[1744594406474,6.911,1618.8,1618.5,4.94284]
[1744594406675,6.911,1618.8,1618.4,4.94311]
[1744594406885,11.85313,1618.8,1618.4,9.88609]
[1744594407056,6.911,1618.8,1618.5,4.94272]
[1744594407255,7.61064131,1618.8,1618.5,4.94272]
[1744594407852,7.61064131,1618.8,1618.5,9.88544]
[1744594408070,6.911,1618.8,1618.6,4.94253]
[1744594409183,6.911,1618.8,1618.7,4.94223]
[1744594410564,6.911,1618.8,1618.7,5.99898203]
[1744594410763,6.911,1618.8,1618.7,6.4680216]
[1744594410965,6.911,1619.1,1618.9,4.94147]
[1744594411680,13.24358,1619.1,1618.7,5.28536203]
[1744594411852,4.94135,1619.0,1618.6,4.94249]
[1744594412057,4.94135,1619.0,1618.6,4.94236]
[1744594412588,13.24358,1619.1,1618.7,9.88429]
[1744594412788,13.24358,1619.1,1618.8,4.94185]
[1744594413385,6.911,1619.1,1618.8,9.8837]
[1744594413890,6.911,1619.1,1618.9,4.94132]
[1744594414067,6.911,1619.1,1619.0,4.94132]
[1744594414457,6.911,1619.1,1619.0,5.28472112]
[1744594414654,6.911,1619.1,1619.0,0.34340112]
[1744594414892,6.911,1619.1,1619.0,5.28472112]
[1744594416777,6.911,1619.1,1619.0,6.30732523]
[1744594417956,6.911,1619.1,1619.0,5.28472112]
[1744594418359,6.911,1619.1,1619.0,0.34340112]
[1744594419067,0.7841,1619.0,1618.6,4.9425]
[1744594419273,5.72565,1619.0,1618.6,4.9425]
[1744594419494,5.72565,1619.0,1618.6,9.88492]
[1744594419678,0.572565,1618.9,1618.6,9.88492]
[1744594419887,0.572565,1618.9,1618.6,4.94242]
[1744594420261,0.572565,1618.9,1618.6,9.88482]
[1744594420790,0.572565,1618.9,1618.6,4.9424]
[1744594420987,0.7841,1619.0,1618.7,4.94213]
[1744594421293,0.7841,1619.0,1618.8,4.9419]
[1744594421607,6.911,1619.1,1619.0,4.94132]
[1744594422156,52.994,1619.3,1619.0,4.94132]
[1744594422385,6.907,1619.4,1619.2,4.94042]
[1744594422588,6.907,1619.4,1619.1,10.22486572]
[1744594422789,6.907,1619.4,1619.1,5.28387572]
[1744594423003,12.66002288,1619.4,1619.1,0.34299572]
[1744594423204,5.72462,1619.3,1619.1,0.34299572]
[1744594423558,0.7841,1619.3,1619.0,9.88244]
[1744594423780,7.71980288,1619.4,1619.1,4.94089]
[1744594424498,7.71980288,1619.4,1619.1,4.94098]
[1744594424656,12.65995288,1619.4,1619.1,4.94098]
[1744594424857,1.26599529,1619.3,1619.0,4.94127]
[1744594425591,1.26599529,1619.3,1619.0,4.94117]
[1744594426091,6.20640529,1619.3,1619.0,4.94117]
[1744594426594,1.26599529,1619.3,1619.0,4.94117]
[1744594426772,1.26599529,1619.3,1618.7,0.7136]
[1744594426957,1.26599529,1619.3,1619.0,4.94121]
[1744594427395,1.26599529,1619.3,1619.1,4.941]
[1744594427598,1.26599529,1619.3,1619.0,4.94131]
[1744594427894,1.26599529,1619.3,1619.0,9.88246]
[1744594428096,7.93919,1619.7,1619.0,9.88246]
[1744594428097,5.72298,1619.8,1619.3,0.7136]
[1744594428295,11.84547,1619.7,1619.3,5.65396]
[1744594428592,11.84547,1619.7,1619.3,4.94036]
[1744594428773,1.184547,1619.6,1619.3,4.94036]
[1744594428975,1.184547,1619.6,1619.3,9.88061]
[1744594429369,1.184547,1619.6,1619.3,4.94025]
[1744594429887,6.124177,1619.6,1619.2,4.9407]
[1744594430085,11.063897,1619.6,1619.2,4.9407]
[1744594431059,11.063837,1619.6,1619.2,4.94057]
[1744594431397,1.1063837,1619.5,1619.2,4.94057]
[1744594432709,11.10858,1619.9,1619.2,4.94057]
[1744594432710,60.7114,1620.0,1619.7,4.93908]
[1744594432924,65.64977,1620.0,1619.7,4.93917]
[1744594433480,60.7114,1620.0,1619.7,4.93917]
[1744594433679,60.7114,1620.0,1619.7,4.93907]
[1744594434710,4.93868,1619.9,1619.5,4.93973]
[1744594434874,4.93899,1619.8,1619.4,4.9401]
[1744594435272,4.93899,1619.8,1619.4,9.88004]
[1744594435812,4.93951,1619.6,1619.2,4.94066]
[1744594436012,11.84351,1619.6,1619.2,4.94066]
[1744594436312,13.027861,1619.6,1619.2,4.94066]
[1744594436509,13.027861,1619.6,1619.1,5.65457]
[1744594436684,10.70233,1619.5,1619.1,5.65457]
[1744594436883,5.76233,1619.5,1619.1,5.65457]
[1744594437113,4.94011,1619.4,1619.0,4.94127]
[1744594437409,4.94051,1619.3,1618.9,4.9416]
[1744594437568,11.84482,1619.2,1618.8,10.34396411]
[1744594437765,11.84482,1619.2,1618.9,4.9416]
[1744594437966,6.904,1619.2,1618.9,4.9416]
[1744594438397,6.904,1619.2,1619.0,4.9413]
[1744594438814,6.904,1619.2,1619.1,0.34312387]
[1744594439585,6.904,1619.2,1619.1,5.28413387]
[1744594440314,6.904,1619.2,1619.1,0.34312387]
[1744594441022,6.904,1619.2,1619.1,5.28413387]
[1744594441194,6.904,1619.2,1619.1,0.34312387]
[1744594441600,6.904,1619.2,1618.9,9.883]
[1744594442226,6.904,1619.2,1619.0,4.94129]
[1744594442437,6.904,1619.2,1619.0,4.94116]
[1744594442732,6.904,1619.2,1619.1,4.94101]
[1744594443089,6.904,1619.2,1618.9,4.94151]
[1744594443427,6.904,1619.2,1619.0,0.34343107]
[1744594443910,13.85077,1619.2,1619.0,0.34343107]
[1744594444096,4.94101,1619.1,1618.7,10.59802]
[1744594444489,4.94148,1619.0,1618.6,4.94237]
[1744594444841,4.94148,1619.0,1618.6,9.88474]
[1744594445126,9.88305,1619.0,1618.7,0.34366406]
[1744594445422,8.91005,1619.2,1618.7,0.34366406]
[1744594445423,6.751685,1618.9,1618.7,0.34366406]
[1744594445622,11.84693,1618.8,1618.7,0.34366406]
[1744594445792,11.84693,1618.8,1618.3,5.65705]
[1744594445793,4.94238,1618.7,1618.3,9.88677]
[1744594445988,4.94238,1618.7,1618.3,4.94332]
[1744594446195,4.94254,1618.6,1618.3,4.94332]
[1744594446403,5.76414,1618.6,1618.2,4.94373]
[1744594446608,5.76414,1618.6,1618.3,0.34372116]
[1744594446609,4.94287,1618.5,1618.3,0.34372116]
[1744594446996,4.94315,1618.4,1618.3,0.34372116]
[1744594447194,4.94315,1618.4,1618.1,0.02]
[1744594447195,4.94376,1618.2,1618.1,0.02]
[1744594447630,5.76536,1618.2,1618.1,0.02]
[1744594448016,8.76536,1618.2,1618.1,0.02]
[1744594448243,10.136246,1618.2,1618.1,0.02]
[1744594449443,10.686246,1618.2,1618.1,0.02]
[1744594449648,10.686246,1618.2,1617.2,12.25363851]
[1744594449649,69.832246,1618.2,1617.2,12.25363851]
[1744594449940,5.76731,1617.6,1617.2,12.25363851]
[1744594450103,13.739574,1617.6,1617.2,17.20024851]
[1744594450644,18.685414,1617.6,1617.2,12.25352851]
[1744594450804,18.685414,1617.6,1617.2,4.94661]
[1744594451200,13.739454,1617.6,1617.1,4.96697]
[1744594451406,13.739454,1617.6,1617.2,4.94662]
[1744594451619,6.3200054,1617.5,1617.1,4.96704]
[1744594451917,4.94626,1617.4,1617.1,0.02]
[1744594452129,9.89271,1617.4,1617.1,0.02]
[1744594452303,4.94654,1617.3,1617.1,0.02]
[1744594452502,0.494654,1617.2,1617.1,0.02]
[1744594454343,4.94623,1617.4,1617.1,0.02]
[1744594454517,4.94651,1617.3,1617.1,0.02]
[1744594455241,9.89272,1617.4,1617.1,0.02]
[1744594455444,4.94654,1617.3,1617.1,0.02]
[1744594455617,4.94682,1617.2,1617.1,0.02]
[1744594455818,13.662756,1617.2,1617.1,0.02]
[1744594456537,14.212756,1617.2,1617.1,0.02]
[1744594456736,13.391156,1617.2,1617.1,0.02]
[1744594456933,14.212756,1617.2,1617.1,0.02]
[1744594457378,17.212756,1617.2,1617.1,0.02]
[1744594457523,23.382756,1617.2,1617.1,0.02]
[1744594458341,22.832756,1617.2,1617.1,0.02]
[1744594458655,16.662756,1617.2,1617.1,0.02]
[1744594459724,17.212756,1617.2,1617.1,0.02]
[1744594462661,17.66951722,1617.2,1617.1,0.02]
[1744594463245,16.662756,1617.2,1617.1,0.02]
[1744594463831,13.662756,1617.2,1617.1,0.02]
[1744594464032,4.94624,1617.4,1617.1,0.7536]
[1744594464248,9.89267,1617.4,1617.1,0.7536]
[1744594464454,4.94654,1617.3,1617.1,0.7536]
[1744594464655,11.85408,1617.5,1617.1,0.7536]
[1744594464970,4.94624,1617.4,1617.1,0.7536]
[1744594465166,11.85392,1617.5,1617.1,5.70071]
[1744594465371,6.908,1617.5,1617.2,4.94679]
[1744594466080,11.85402,1617.5,1617.1,5.70071]
[1744594466273,6.908,1617.5,1617.1,5.76236163]
[1744594466447,6.908,1617.5,1617.2,4.94664]
[1744594466647,6.908,1617.5,1617.3,4.9465]
[1744594466861,6.908,1617.5,1617.4,0.7336]
[1744594467568,6.909,1617.8,1617.4,0.7336]
[1744594467733,64.14453,1618.0,1617.4,0.7336]
[1744594467734,53.03,1618.0,1617.7,4.94509]
[1744594467936,6.909,1618.2,1617.8,4.94483]
[1744594468137,11.85196,1618.5,1618.1,4.94407]
[1744594468370,16.79511,1618.5,1618.0,4.94437]
[1744594468571,4.94366,1618.3,1617.9,0.7336]
[1744594468778,4.94318,1618.4,1617.9,5.67811]
[1744594468979,6.909,1618.5,1617.9,1.19942784]
[1744594469143,6.909,1618.5,1618.2,9.88731]
[1744594469481,6.909,1618.5,1618.3,5.67705]
[1744594470372,6.909,1618.5,1618.3,5.67687]
[1744594470575,6.909,1618.5,1618.3,0.7336]
[1744594470881,6.909,1618.5,1618.4,4.94315]
[1744594471062,11.89368,1619.1,1618.7,4.94219]
[1744594471063,6.908,1619.0,1618.7,4.94219]
[1744594471262,4.94166,1618.9,1618.4,5.67675]
[1744594471482,4.94207,1618.8,1618.4,5.67675]
[1744594471883,6.908,1619.0,1618.6,4.94227]
[1744594472256,6.908,1619.0,1618.7,4.94209]
[1744594472476,6.908,1619.0,1618.6,4.94227]
[1744594472662,4.94211,1618.8,1618.4,5.67653]
[1744594472990,4.94225,1618.7,1618.4,0.7336]
[1744594473175,0.494211,1618.8,1618.4,0.7336]
[1744594473357,4.94226,1618.7,1618.4,0.7336]
[1744594474045,9.88472,1618.7,1618.4,0.7336]
[1744594474257,5.9801531,1618.7,1618.4,0.7336]
[1744594474458,1.0378931,1618.7,1618.4,5.67674]
[1744594474746,1.0378931,1618.7,1618.4,0.7336]
[1744594474747,5.9802531,1618.7,1618.4,0.7336]
[1744594475380,10.9227431,1618.7,1618.4,0.7336]
[1744594475560,4.94255,1618.6,1618.4,0.7336]
[1744594475757,5.9802531,1618.7,1618.4,0.7336]
[1744594475966,4.94236,1618.7,1618.4,0.7336]
[1744594476506,4.94164,1618.9,1618.5,4.94284]
[1744594476803,9.88429,1618.8,1618.4,5.67674]
[1744594477012,4.94177,1618.9,1618.4,5.67663]